bitfinex-derivatives/quotes_ETHF0:USTF0_20251220
["timestamp","ask_amount","ask_price","bid_price","bid_amount"]
[1766191043254,2.42901127,2977.4,2976.5,0.00503803]
[1766191045650,3.36,2977.5,2976.5,0.00503803]
[1766191071575,3.36,2977.5,2975.7,9.84066582]
[1766191071576,2.42901127,2977.0,2976.0,3.36]
[1766191071874,3.36,2976.9,2976.0,3.36]
[1766191072575,0.00503803,2976.7,2976.2,0.00335874]
[1766191078179,0.00503803,2976.7,2976.0,3.36357931]
[1766191078180,0.00503803,2976.7,2976.0,0.00357931]
[1766191078376,0.00503803,2976.7,2975.6,3.36]
[1766191078377,5.78934134,2976.6,2975.6,3.36]
[1766191078681,5.78934134,2976.6,2975.4,3.36]
[1766191078880,3.36,2976.6,2975.4,3.36]
[1766191079380,3.36,2976.6,2975.4,3.36308747]
[1766191091687,0.00503803,2976.7,2975.4,3.36308747]
[1766191091880,3.361,2976.6,2975.4,3.36308747]
[1766191092081,3.361,2976.6,2975.6,2.42934134]
[1766191092282,3.361,2976.6,2975.7,3.361]
[1766191114099,3.361,2976.6,2975.4,0.00308747]
[1766191114397,3.361,2976.6,2975.5,5.706]
[1766191118297,3.361,2976.6,2975.4,0.00308747]
[1766191124903,5.79041869,2976.6,2975.4,0.00308747]
[1766191125109,5.95849869,2976.6,2975.2,3.361]
[1766191126109,5.95849869,2976.6,2975.2,3.36452151]
[1766191127208,2.42941869,2976.3,2975.2,3.36452151]
[1766191127412,3.361,2976.2,2975.2,3.36452151]
[1766191131013,2.599,2976.1,2975.2,0.00352151]
[1766191132713,2.599,2976.1,2974.6,1.45372814]
[1766191132714,2.42941869,2976.0,2974.6,1.45372814]
[1766191132908,2.42941869,2975.7,2974.6,1.45372814]
[1766191133109,3.361,2975.6,2974.6,1.45372814]
[1766191133716,3.361,2975.6,2974.6,1.4579772]
[1766191133912,3.361,2975.6,2974.6,0.00424906]
[1766191140821,2.43174667,2975.7,2974.6,0.00424906]
[1766191141021,3.362,2975.6,2974.6,0.00424906]
[1766191141523,3.362,2975.6,2974.7,2.43174667]
[1766191141725,6.012,2975.7,2974.7,2.43174667]
[1766191141726,8.405,2976.2,2975.1,2.43174667]
[1766191141914,3.362,2976.1,2975.1,3.362]
[1766191149624,3.362,2976.1,2975.1,5.79374667]
[1766191150328,3.362,2976.2,2975.5,2.43174667]
[1766191156942,0.00347743,2976.3,2975.8,2.43174667]
[1766191157141,0.00347743,2976.3,2975.8,5.79274667]
[1766191158031,0.00347743,2976.3,2975.8,3.361]
[1766191161550,0.00347743,2976.3,2975.8,5.79274667]
[1766191163443,0.00347743,2976.3,2975.8,3.361]
[1766191163649,3.36603803,2976.7,2976.2,2.43174667]
[1766191163850,3.36603803,2976.7,2976.0,2.43174667]
[1766191164644,3.36871495,2976.7,2976.0,2.43174667]
[1766191166247,3.36871495,2976.7,2975.8,3.361]
[1766191166549,3.36871495,2976.7,2976.0,2.43174667]
[1766191166944,3.36871495,2976.7,2976.2,2.43174667]
[1766191169844,0.00771495,2976.7,2976.2,2.43174667]
[1766191170646,0.00771495,2976.7,2976.1,3.361]
[1766191171048,0.00771495,2976.7,2976.4,2.43174667]
[1766191171454,0.00771495,2976.7,2976.2,2.43174667]
[1766191173353,0.00771495,2976.7,2976.2,2.42872347]
[1766191177452,0.00771495,2976.7,2976.1,3.361]
[1766191183261,3.36,2976.6,2975.9,3.36]
[1766191183556,3.36,2976.6,2975.8,3.36]
[1766191187469,3.36,2976.6,2975.9,2.42872347]
[1766191187664,3.36,2976.6,2975.6,3.361]
[1766191187965,3.36,2976.6,2975.7,2.42872347]
[1766191193471,3.36,2976.6,2975.6,3.361]
[1766191193668,3.36,2976.6,2975.9,2.42872347]
[1766191193971,3.36871495,2976.7,2976.1,2.42872347]
[1766191194372,3.361,2977.0,2976.4,2.42872347]
[1766191194664,3.361,2977.0,2976.3,3.361]
[1766191195366,0.00503803,2976.9,2976.3,3.361]
[1766191197467,0.00503803,2976.9,2976.1,0.00503802]
[1766191197468,2.42872347,2976.8,2976.1,0.00503802]
[1766191197774,3.361,2976.7,2976.1,3.802e-05]
[1766191198263,2.42872347,2976.6,2976.1,3.802e-05]
[1766191199270,3.361,2976.7,2976.1,3.802e-05]
[1766191204565,0.00503803,2976.9,2976.1,3.802e-05]
[1766191204765,0.00503803,2976.9,2976.1,3.36103802]
[1766191217185,0.00503803,2976.9,2976.1,3.802e-05]
[1766191224691,3.36603803,2976.9,2976.1,3.36103802]
[1766191224888,2.87253803,2976.9,2976.1,3.36103802]
[1766191225890,0.00503803,2976.8,2976.1,3.36103802]
[1766191232586,3.361,2976.7,2976.1,3.36103802]
[1766191235897,3.1304,2976.7,2976.1,3.36103802]
[1766191237494,2.1437,2976.7,2976.1,3.36103802]
[1766191237699,1.6505,2976.7,2976.1,3.36103802]
[1766191237896,0.6641,2976.7,2976.1,3.36103802]
[1766191248513,0.00503803,2976.8,2976.1,3.36103802]
[1766191252411,3.36268554,2977.0,2976.1,3.36103802]
[1766191253511,0.00503803,2976.8,2976.1,3.36103802]
[1766191253708,0.00268554,2977.0,2976.3,2.42889751]
[1766191253906,0.00268554,2977.0,2976.4,3.36]
[1766191254806,0.00772357,2977.0,2976.4,3.36]
[1766191260220,0.00772357,2977.0,2976.1,3.802e-05]
[1766191260610,0.00772357,2977.0,2976.2,3.36]
[1766191265114,2.42903153,2976.9,2976.1,3.802e-05]
[1766191265316,2.42903153,2976.7,2976.1,3.802e-05]
[1766191271421,3.36,2976.8,2976.1,3.802e-05]
[1766191278825,3.361,2976.7,2976.1,3.802e-05]
[1766191295933,3.361,2976.7,2976.2,2.42903153]
[1766191303543,3.361,2976.7,2976.1,3.802e-05]
[1766191305648,5.79003153,2976.7,2976.1,3.802e-05]
[1766191308844,3.361,2976.7,2976.1,3.802e-05]
[1766191320064,2.43000896,2976.4,2976.1,3.802e-05]
[1766191320272,3.361,2976.3,2976.1,3.802e-05]
[1766191323172,3.361,2976.6,2976.1,3.802e-05]
[1766191346085,0.00772357,2977.0,2976.1,3.802e-05]
[1766191346293,3.361,2976.9,2976.1,3.802e-05]
[1766191363505,11.764,2976.9,2976.1,3.802e-05]
[1766191368810,14.1940984,2976.9,2976.1,3.802e-05]
[1766191377118,11.764,2976.9,2976.1,3.802e-05]
[1766191381917,0.00772357,2977.0,2976.1,3.802e-05]
[1766191382123,11.866,2976.9,2976.1,3.802e-05]
[1766191397926,11.866,2976.9,2976.1,2.42934233]
[1766191398128,11.866,2976.9,2976.1,3.802e-05]
[1766191398329,2.42930431,2976.6,2976.1,3.802e-05]
[1766191398528,2.42930431,2976.4,2975.2,1.47212376]
[1766191398729,3.361,2976.3,2975.3,3.462]
[1766191398935,3.361,2976.3,2975.4,3.361]
[1766191399330,2.42930431,2976.2,2975.4,3.361]
[1766191399531,2.42930431,2976.2,2975.5,0.00503803]
[1766191399734,2.42930431,2976.2,2975.5,3.803e-05]
[1766191403540,3.361,2976.3,2975.5,3.803e-05]
[1766191409452,3.361,2976.3,2974.4,2.42930431]
[1766191409453,2.42930431,2975.7,2974.4,2.42930431]
[1766191409653,5.79030431,2975.7,2974.9,3.361]
[1766191410557,0.00503803,2975.6,2975.0,0.00503803]
[1766191431074,0.00503803,2975.6,2975.0,2.43434234]
[1766191433778,3.803e-05,2975.6,2975.0,2.43434234]
[1766191435282,3.362,2976.0,2975.3,2.42930431]
[1766191435575,3.362,2976.0,2975.4,3.362]
[1766191436481,3.36703803,2976.0,2975.4,3.362]
[1766191437376,0.00503803,2976.0,2975.4,3.362]
[1766191437578,0.00503803,2976.0,2975.4,4.84037637]
[1766191443283,0.00503803,2976.0,2975.4,7.26968068]
[1766191445388,0.00503803,2976.0,2975.4,4.84037637]
[1766191451286,3.361,2976.3,2975.4,4.84037637]
[1766191451591,3.361,2976.4,2975.4,4.84037637]
[1766191452192,0.00503803,2976.2,2975.4,4.84037637]
[1766191464900,3.361,2976.1,2975.4,1.47837637]
[1766191465401,3.361,2976.1,2975.1,3.361]
[1766191465590,3.361,2976.1,2975.2,2.42998949]
[1766191467501,3.361,2976.1,2975.1,3.361]
[1766191475304,0.00503803,2976.2,2975.1,3.361]
[1766191475515,3.361,2976.1,2975.1,3.361]
[1766191497238,3.361,2976.1,2975.0,0.00503803]
[1766191497439,3.361,2976.1,2975.1,3.361]
[1766191500249,3.361,2976.1,2975.0,0.00503803]
[1766191500250,5.79098949,2976.1,2975.0,0.00503803]
[1766191501047,3.361,2976.1,2975.0,0.00503803]
[1766191501238,3.361,2976.1,2975.1,2.42998949]
[1766191501439,3.361,2976.1,2975.2,3.361]
[1766191515362,2.43066558,2975.8,2975.2,3.361]
[1766191515566,3.361,2975.7,2975.2,3.361]
[1766191515859,3.361,2975.7,2975.0,0.00503803]
[1766191515860,2.43066558,2975.5,2975.0,3.803e-05]
[1766191516058,3.361,2975.4,2974.7,1.4847614]
[1766191517068,3.361,2975.4,2974.8,0.00503803]
[1766191517958,6.28566558,2975.8,2974.8,0.00503803]
[1766191517959,2.43066558,2975.8,2974.8,0.00503803]
[1766191518170,0.17312803,2976.2,2974.8,0.00503803]
[1766191518369,15.41066558,2976.1,2974.8,0.00503803]
[1766191519059,9.826,2976.0,2974.8,0.00503803]
[1766191520871,9.826,2976.0,2974.9,2.43066558]
[1766191521066,9.826,2976.0,2974.8,0.00503803]
[1766191522162,0.17312803,2976.2,2974.9,3.361]
[1766191522366,0.17312803,2976.2,2974.9,5.79166558]
[1766191522561,3.406,2976.1,2974.9,5.79166558]
[1766191524062,3.361,2976.0,2974.9,5.79166558]
[1766191527871,0.00503803,2976.2,2975.2,2.43066558]
[1766191528171,3.361,2976.1,2975.3,3.361]
[1766191534379,0.00503803,2976.2,2975.3,3.361]
[1766191535562,0.00503803,2976.2,2975.2,2.43066558]
[1766191535779,0.00503803,2976.2,2975.3,3.361]
[1766191536875,0.00503803,2976.2,2975.2,2.43066558]
[1766191537073,0.00503803,2976.2,2975.3,3.361]
[1766191551679,2.43066558,2975.9,2974.8,0.00503803]
[1766191551877,3.361,2975.8,2974.8,3.36603803]
[1766191552179,2.43066558,2975.7,2974.8,3.36603803]
[1766191554168,2.43066558,2975.7,2974.8,0.00503803]
[1766191560978,3.361,2975.8,2974.8,0.00503803]
[1766191560979,2.43066558,2975.5,2974.8,0.00503803]
[1766191561184,3.361,2975.4,2974.8,0.00503803]
[1766191564088,0.17312803,2976.2,2974.9,2.43066558]
[1766191564288,9.41366558,2976.1,2974.8,3.36703803]
[1766191564492,2.43066558,2975.9,2974.8,3.36703803]
[1766191564788,3.362,2975.8,2974.8,3.36703803]
[1766191585118,3.362,2975.7,2974.8,3.36703803]
[1766191589720,3.36703803,2976.2,2975.0,2.43099437]
[1766191589919,3.36703803,2976.2,2975.3,2.43099437]
[1766191590117,3.36703803,2976.2,2975.4,3.362]
[1766191591320,0.16805,2976.9,2975.6,2.43099437]
[1766191591523,3.362,2976.8,2975.7,3.362]
[1766191592217,3.362,2976.8,2975.9,2.43099437]
[1766191592518,0.00503803,2976.6,2976.0,3.362]
[1766191597526,0.00268554,2977.0,2976.0,3.362]
[1766191597726,3.36368554,2977.0,2976.0,3.362]
[1766191598629,0.00503803,2976.8,2976.0,3.362]
[1766191599426,0.00503803,2976.8,2976.2,2.43099437]
[1766191599627,0.00503803,2976.8,2975.6,2.865]
[1766191599628,0.00503803,2976.8,2976.3,3.361]
[1766191599931,3.36368554,2977.0,2976.3,3.361]
[1766191601031,0.00335873,2976.9,2976.4,0.00503803]
[1766191602131,3.361,2977.4,2976.5,2.43099437]
[1766191602428,3.361,2977.4,2976.4,3.36603803]
[1766191603025,5.79521972,2977.4,2976.4,3.36603803]
[1766191606126,5.79521972,2977.4,2976.2,6.979]
[1766191607122,0.00503802,2977.1,2976.5,0.00503803]
[1766191607325,3.361,2977.0,2976.5,0.00503803]
[1766191609530,3.361,2977.0,2976.5,3.803e-05]
[1766191626243,3.361,2977.0,2975.9,3.36]
[1766191627238,3.361,2977.0,2976.2,3.803e-05]
[1766191627443,2.42968988,2976.9,2976.2,3.803e-05]
[1766191638545,3.361,2977.0,2976.2,3.803e-05]
[1766191638748,0.00503802,2977.1,2976.3,2.42968988]
[1766191638946,3.361,2976.9,2976.2,3.803e-05]
[1766191639144,3.361,2976.9,2976.2,3.36103803]
[1766191641957,2.42968988,2976.3,2975.0,1.44600119]
[1766191642255,2.42968988,2975.8,2975.2,3.361]
[1766191642445,3.361,2975.9,2975.2,3.361]
[1766191642956,3.361,2975.9,2975.3,0.00503803]
[1766191645153,2.42968988,2975.8,2974.6,0.00424906]
[1766191645345,2.42968988,2975.8,2974.7,3.361]
[1766191645757,3.361,2975.9,2974.7,3.361]
[1766191646254,0.00503803,2975.6,2975.0,0.00503803]
[1766191646560,3.36603803,2975.6,2975.0,0.00503803]
[1766191661965,0.00503803,2975.6,2975.0,0.00503803]
[1766191662162,3.36703803,2975.6,2975.0,0.00503803]
[1766191665265,3.36703803,2975.6,2975.0,3.36703803]
[1766191666470,0.16808,2976.4,2975.4,2.43126196]
[1766191666766,0.16808,2976.4,2975.0,3.36703803]
[1766191666767,3.362,2976.3,2975.6,2.43126196]
[1766191666971,3.362,2976.3,2975.6,5.79326196]
[1766191667673,0.00503803,2976.2,2975.6,5.79326196]
[1766191670171,3.361,2976.9,2976.0,2.43126196]
[1766191670475,2.43126196,2976.5,2975.9,3.361]
[1766191670669,5.79226196,2976.5,2975.4,2.627]
[1766191670869,2.43126196,2976.1,2975.2,1.48827158]
[1766191671061,3.361,2976.0,2975.3,3.361]
[1766191671373,0.00503803,2975.9,2975.3,3.361]
[1766191673575,0.00503803,2975.9,2974.8,3.87473574]
[1766191673775,0.00503803,2975.9,2975.1,3.361]
[1766191676176,0.00503803,2975.9,2975.2,2.43126196]
[1766191676380,3.803e-05,2975.9,2975.2,2.43126196]
[1766191678278,3.803e-05,2975.9,2975.1,3.361]
[1766191683982,3.803e-05,2975.9,2975.4,2.43126196]
[1766191684181,3.361,2976.4,2975.7,2.43126196]
[1766191684386,3.361,2976.4,2975.7,5.79226196]
[1766191684582,0.16805,2976.8,2975.7,5.79226196]
[1766191684787,3.361,2976.7,2975.9,2.43126196]
[1766191684984,3.361,2976.7,2976.0,3.361]
[1766191685288,0.00503802,2976.6,2976.0,3.361]
[1766191685490,3.802e-05,2976.6,2976.0,3.361]
[1766191686288,3.802e-05,2976.6,2976.2,2.43126196]
[1766191686488,3.802e-05,2976.6,2976.3,3.361]
[1766191689588,3.361,2977.2,2976.3,3.361]
[1766191690594,3.361,2977.2,2976.5,0.00503803]
[1766191694592,0.00322535,2977.4,2976.6,3.361]
[1766191695186,2.535e-05,2977.4,2976.6,5.78931499]
[1766191695390,3.361,2977.5,2976.6,5.78931499]
[1766191695591,3.361,2977.8,2976.6,5.78931499]
[1766191696496,3.364595,2977.8,2976.6,5.78931499]
[1766191703102,0.003595,2977.8,2976.6,5.78931499]
[1766191703799,0.003595,2977.8,2976.6,3.361]
[1766191704006,0.003595,2977.8,2976.9,2.42831499]
[1766191704304,0.003595,2977.8,2977.0,3.36]
[1766191704503,2.253,2978.4,2977.0,3.36]
[1766191704705,3.36,2978.3,2977.0,4.79974959]
[1766191705202,2.59625499,2978.8,2977.0,4.79974959]
[1766191705497,4.108,2978.7,2977.2,2.42831499]
[1766191705702,4.108,2978.7,2977.3,3.36]
[1766191705898,0.0042229,2978.8,2977.6,2.42831499]
[1766191706100,3.36,2978.7,2977.7,3.36]
[1766191706303,3.36,2978.7,2977.8,3.36]
[1766191709104,3.36,2978.7,2977.0,1.43974959]
[1766191709304,3.36,2978.7,2977.3,3.36]
[1766191709305,2.42831499,2978.4,2977.3,3.36]
[1766191709513,5.04,2978.3,2977.3,3.36]
[1766191713907,2.42831499,2978.1,2977.0,4.79874959]
[1766191714106,3.359,2978.0,2977.0,4.79874959]
[1766191718211,0.16796,2978.5,2977.0,7.22706458]
[1766191718410,3.359,2978.4,2977.0,7.22706458]
[1766191718917,3.359,2978.4,2977.1,2.42654405]
[1766191719111,0.0042229,2978.8,2977.1,2.42654405]
[1766191719313,3.359,2978.7,2977.4,2.42654405]
[1766191719517,3.359,2978.7,2977.5,5.807]
[1766191725013,3.359,2978.7,2977.7,2.42654405]
[1766191725213,3.359,2978.7,2977.8,3.359]
[1766191725609,0.0042229,2978.8,2977.8,3.359]
[1766191725817,2.29e-05,2978.8,2978.0,2.43158208]
[1766191726022,2.29e-05,2978.8,2978.1,3.359]
[1766191729825,2.42654405,2978.2,2976.2,1.4791253]
[1766191730026,3.359,2978.1,2976.8,3.359]
[1766191730330,3.359,2978.1,2976.8,5.78554405]
[1766191730933,0.00503803,2977.8,2977.2,0.00503803]
[1766191733925,3.803e-05,2977.8,2977.2,0.00503803]
[1766191752748,3.359,2977.7,2976.9,1.678e-05]
[1766191752947,3.359,2977.7,2976.6,3.359]
[1766191753855,3.359,2977.7,2976.9,0.00503803]
[1766191755451,2.42843378,2977.6,2976.9,0.00503803]
[1766191755661,5.78743378,2977.7,2976.9,0.00503803]
[1766191756255,5.78743378,2977.7,2976.9,3.803e-05]
[1766191761562,3.359,2977.7,2976.9,3.803e-05]
[1766191761763,2.42843378,2977.6,2976.9,3.803e-05]
[1766191767671,2.42843378,2977.4,2976.9,3.803e-05]
[1766191767963,3.359,2977.3,2976.9,3.803e-05]
[1766191801792,3.36,2977.4,2976.9,3.803e-05]
[1766191801986,3.803e-05,2977.8,2976.9,3.803e-05]
[1766191802194,3.36,2977.7,2977.0,5.78876683]
[1766191805190,3.803e-05,2977.8,2977.0,5.78876683]
[1766191805191,3.803e-05,2977.8,2977.2,2.42876683]
[1766191805398,3.803e-05,2977.8,2977.3,3.36]
[1766191810090,2.42689265,2978.8,2977.3,3.36]
[1766191810091,2.29e-05,2978.8,2977.3,3.36]
[1766191810291,5.78586975,2978.5,2977.3,3.36]
[1766191811100,0.00503803,2978.2,2977.3,3.36]
[1766191811696,0.00503803,2978.2,2977.3,5.78686975]
[1766191812098,0.00503803,2978.2,2977.3,3.36]
[1766191817307,3.359,2978.1,2977.3,3.36]
[1766191833117,3.359,2978.1,2976.9,3.803e-05]
[1766191833319,3.359,2978.1,2977.0,3.359]
[1766191833619,5.201,2978.1,2977.0,3.359]
[1766191837922,2.42686975,2977.9,2977.0,3.359]
[1766191838218,3.359,2977.8,2977.0,3.359]
[1766191861529,5.78683388,2977.8,2976.9,3.803e-05]
[1766191861838,2.42783388,2977.4,2976.6,0.00268373]
[1766191862135,3.359,2977.3,2976.6,0.00268373]
[1766191862342,3.359,2977.2,2976.6,0.00268373]
[1766191862532,2.956,2977.5,2976.6,0.00268373]
[1766191862533,2.3287,2977.1,2976.6,0.00268373]
[1766191863041,2.3287,2977.1,2976.6,0.00772176]
[1766191864238,2.42783388,2977.5,2976.6,0.00772176]
[1766191864429,3.36,2977.4,2976.6,0.00772176]
[1766191865532,3.36,2977.4,2976.6,2.176e-05]
[1766191866541,3.36,2977.4,2976.6,0.00340992]
[1766191867540,3.36,2977.4,2976.6,9.92e-06]
[1766191868640,3.36,2977.4,2976.7,0.00503803]
[1766191869435,2.4288812,2977.3,2976.7,0.00503803]
[1766191875145,3.36,2977.4,2976.7,0.00503803]
[1766191875338,5.7888812,2977.4,2976.7,0.00503803]
[1766191879444,0.168,2977.8,2976.7,0.00503803]
[1766191879750,3.441,2977.7,2976.7,0.00503803]
[1766191880050,0.168,2977.8,2976.7,0.00503803]
[1766191880243,7.996,2977.7,2976.7,0.00503803]
[1766191886748,6.891,2977.9,2976.7,0.00503803]
[1766191887048,3.36,2977.6,2976.7,0.00503803]
[1766191903260,0.17301803,2978.2,2976.8,2.4288812]
[1766191903462,3.407,2978.1,2976.9,3.359]
[1766191903658,5.8358812,2978.1,2976.9,3.359]
[1766191908765,3.407,2978.1,2977.2,2.4288812]
[1766191909070,3.407,2978.1,2977.3,3.359]
[1766191920673,2.4288812,2978.0,2976.7,0.00503803]
[1766191920873,3.359,2977.9,2976.8,3.359]
[1766191928289,2.42768936,2977.8,2976.8,3.359]
[1766191928682,2.42768936,2977.4,2976.7,0.00503803]
[1766191928885,3.359,2977.3,2976.2,3.359]
[1766191929892,3.359,2977.3,2976.5,0.00503803]
[1766191935894,3.359,2977.3,2976.5,3.803e-05]
[1766191936091,3.359,2977.3,2976.2,3.36268284]
[1766191936992,3.359,2977.3,2976.5,0.00503803]
[1766191937492,3.359,2977.3,2975.8,6.18123306]
[1766191937493,2.42874893,2976.9,2975.9,3.36]
[1766191937693,3.36,2976.8,2975.9,3.36]
[1766191938601,0.00503803,2976.6,2976.1,0.00335873]
[1766191938789,3.36,2976.5,2976.1,0.00335873]
[1766191939696,3.36,2976.5,2975.9,3.36362248]
[1766191940997,3.36,2976.5,2975.3,3.36]
[1766191941199,3.36,2976.5,2975.2,3.36]
[1766191941990,3.36,2976.5,2975.2,3.36401252]
[1766191943497,5.78874893,2976.5,2975.2,3.36401252]
[1766191961215,2.42874893,2976.2,2975.2,3.36401252]
[1766191961416,3.361,2976.1,2975.2,3.36401252]
[1766191963607,2.42874893,2975.9,2975.2,3.36401252]
[1766191963917,3.361,2975.8,2975.2,0.00401252]
[1766191964209,3.361,2975.8,2974.9,3.361]
[1766191965011,3.361,2975.8,2974.9,3.36516026]
[1766191965416,3.361,2975.8,2974.9,0.00416026]
[1766191976418,3.361,2975.8,2974.8,3.361]
[1766191977624,3.361,2975.8,2974.8,3.36517956]
[1766191982025,0.16809,2976.2,2974.8,3.36517956]
[1766191982218,6.039,2976.1,2974.8,5.79392849]
[1766191982625,3.362,2976.0,2974.8,5.79392849]
[1766191983426,2.381,2976.3,2974.8,7.23854086]
[1766191983622,3.362,2976.2,2974.8,7.23854086]
[1766191984222,0.00879517,2976.6,2974.8,7.23854086]
[1766191984428,7.968,2976.5,2974.8,7.23854086]
[1766191984625,7.968,2976.5,2974.8,4.80979193]
[1766191984823,2.42874893,2976.4,2974.8,4.80979193]
[1766191985331,8.704,2976.3,2974.8,4.80979193]
[1766191986430,2.42874893,2976.1,2974.8,4.80979193]
[1766191986626,2.42874893,2975.8,2974.8,4.80979193]
[1766191986931,3.362,2975.7,2974.8,4.80979193]
[1766191990626,3.362,2975.7,2973.9,3.88897104]
[1766191990627,5.6750605,2975.6,2973.9,8.405]
[1766191990827,5.6750605,2975.6,2974.1,3.535]
[1766191990828,0.00503803,2975.0,2974.1,3.535]
[1766191991628,0.00503803,2975.0,2974.1,3.53754987]
[1766191992037,2.43186002,2974.5,2974.1,0.00254987]
[1766191992331,0.00424246,2974.5,2974.1,0.00254987]
[1766191997139,4.246e-05,2974.5,2974.1,0.00254987]
[1766192000840,4.246e-05,2974.5,2973.8,5.79386002]
[1766192000841,2.43186002,2974.2,2973.0,0.07954699]
[1766192001141,3.362,2974.2,2973.1,5.79386002]
[1766192001942,3.362,2974.2,2973.3,2.43186002]
[1766192002141,4.246e-05,2974.5,2973.4,3.362]
[1766192002442,3.362,2974.4,2973.4,3.362]
[1766192003544,4.246e-05,2974.5,2973.6,2.43186002]
[1766192003729,3.362,2974.4,2973.6,2.43186002]
[1766192003935,3.362,2974.4,2973.7,3.362]
[1766192008045,5.79386002,2974.4,2973.7,3.362]
[1766192010744,5.79386002,2974.4,2973.1,0.00416193]
[1766192010940,5.79386002,2974.4,2973.4,3.363]
[1766192015245,2.43186002,2974.1,2973.1,3.36716193]
[1766192015553,2.43186002,2973.9,2973.1,3.36716193]
[1766192015747,3.363,2973.8,2973.1,3.36716193]
[1766192018050,2.43186002,2973.2,2971.3,1.23906018]
[1766192018248,2.43186002,2972.7,2971.1,0.16837]
[1766192018555,0.00504667,2972.5,2971.3,2.43186002]
[1766192018751,3.363,2972.4,2971.4,3.363]
[1766192019155,3.363,2972.4,2971.8,2.43186002]
[1766192019347,4.667e-05,2972.5,2971.8,2.43186002]
[1766192019550,3.36304667,2972.5,2971.7,3.363]
[1766192019954,3.36304667,2972.5,2971.4,5.79733382]
[1766192020155,3.3664326,2972.5,2971.7,0.00502881]
[1766192021352,0.0034326,2972.5,2971.7,0.00502881]
[1766192021563,2.43186002,2972.2,2971.7,0.00502881]
[1766192021857,3.364,2972.1,2971.7,0.00502881]
[1766192023058,0.0034326,2972.5,2971.7,2.43688883]
[1766192023264,3.26e-05,2972.5,2971.7,2.43688883]
[1766192023656,3.26e-05,2972.5,2971.7,0.00502881]
[1766192024057,3.364,2972.4,2971.7,0.00502881]
[1766192024558,0.00504667,2972.3,2971.7,0.00502881]
[1766192025361,2.43690669,2972.3,2971.7,0.00502881]
[1766192025755,0.00504667,2972.3,2971.7,0.00502881]
[1766192028863,4.727,2972.2,2971.7,0.00502881]
[1766192029069,3.364,2972.1,2971.7,0.00502881]
[1766192030771,0.00504667,2972.3,2971.7,0.00502881]
[1766192031162,3.365,2972.2,2971.7,0.00502881]
[1766192033269,3.365,2972.2,2970.2,0.16842]
[1766192033476,2.43186002,2971.7,2969.9,3.365]
[1766192033670,3.365,2971.6,2970.3,2.43186002]
[1766192033963,2.43186002,2971.5,2970.3,3.365]
[1766192034365,0.00504667,2971.2,2970.3,3.36822098]
[1766192034571,3.365,2971.4,2970.6,2.43186002]
[1766192034870,1.4336,2971.4,2970.6,3.365]
[1766192035274,3.365,2971.4,2970.6,3.365]
[1766192035573,0.00504667,2971.3,2970.7,0.00504667]
[1766192035771,4.667e-05,2971.3,2970.7,0.00504667]
[1766192036472,4.667e-05,2971.3,2970.7,8.41904667]
[1766192036871,4.667e-05,2971.3,2970.8,2.43186002]
[1766192037073,4.667e-05,2971.3,2970.9,3.365]
[1766192038772,4.667e-05,2971.3,2971.0,2.43186002]
[1766192039074,3.365,2972.3,2971.3,2.43186002]
[1766192039271,3.365,2972.3,2971.4,3.365]
[1766192039463,2.43186002,2972.7,2971.4,3.365]
[1766192039669,3.365,2972.9,2971.9,2.43186002]
[1766192039873,7.927e-05,2972.5,2972.0,3.365]
[1766192041071,0.00344679,2972.5,2972.0,3.365]
[1766192041964,4.679e-05,2972.5,2972.0,3.365]
[1766192042967,0.00509346,2972.5,2972.0,3.365]
[1766192045075,0.16819,2974.3,2972.0,9.365]
[1766192045268,5.84486002,2974.2,2972.8,2.43186002]
[1766192045473,2.43186002,2974.0,2972.7,3.365]
[1766192045674,3.365,2973.9,2972.7,3.365]
[1766192046080,0.00504667,2973.6,2973.0,0.00504667]
[1766192046272,3.365,2973.5,2973.0,0.00504667]
[1766192047873,2.43186002,2973.1,2970.6,3.363]
[1766192048075,2.43186002,2973.1,2971.3,12.99217023]
[1766192048076,2.43186002,2972.8,2971.3,12.99217023]
[1766192048278,3.365,2972.7,2971.3,15.62658313]
[1766192048466,3.365,2972.7,2971.4,2.43186002]
[1766192048875,3.365,2972.7,2971.8,0.00504667]
[1766192049176,3.365,2972.7,2971.9,3.365]
[1766192050282,3.365,2973.0,2971.9,3.365]
[1766192051878,0.00504667,2973.6,2971.9,3.365]
[1766192052081,3.415,2973.5,2971.9,3.365]
[1766192055880,0.00504667,2973.6,2971.9,3.365]
[1766192056081,3.181,2973.4,2971.9,3.365]
[1766192056981,3.365,2973.3,2971.9,3.365]
[1766192057178,0.00504667,2973.6,2971.9,4.59066973]
[1766192057377,3.365,2973.5,2972.0,1.011]
[1766192057577,3.365,2973.5,2972.1,8.412]
[1766192057780,3.365,2973.5,2972.2,3.365]
[1766192059977,0.00504667,2973.6,2972.2,4.60680495]
[1766192060176,3.365,2973.5,2972.2,4.60680495]
[1766192060377,3.37004667,2973.6,2972.2,4.60680495]
[1766192061383,0.00504667,2973.6,2972.2,4.60680495]
[1766192061883,3.36904667,2973.6,2972.2,4.60680495]
[1766192062385,3.364,2973.5,2972.2,4.60680495]
[1766192062772,0.36044667,2973.6,2972.2,38.25580495]
[1766192062982,3.364,2973.7,2972.3,3.73101915]
[1766192063380,0.00289383,2973.9,2972.3,3.73101915]
[1766192063584,3.364,2973.8,2972.3,3.73101915]
[1766192063983,0.00504667,2973.3,2972.3,3.73101915]
[1766192064981,4.667e-05,2973.3,2972.3,7.09401915]
[1766192065485,4.667e-05,2973.3,2972.3,7.26232915]
[1766192066184,4.667e-05,2973.3,2972.4,0.1683]
[1766192066482,4.667e-05,2973.3,2972.5,3.364]
[1766192066683,4.667e-05,2973.3,2972.6,14.646]
[1766192078801,4.667e-05,2973.3,2972.7,3.60464836]
[1766192079001,4.667e-05,2973.3,2972.8,3.364]
[1766192079303,4.667e-05,2973.3,2972.9,8.41]
[1766192085993,4.667e-05,2973.3,2972.6,14.646]